bitfinex/quotes_BTCUSD_20241010
["timestamp","ask_amount","ask_price","bid_price","bid_amount"]
[1728553761351,0.960926,60963.0,60962.0,0.4272507]
[1728553761598,0.974926,60963.0,60962.0,0.5912867]
[1728553762281,0.960926,60963.0,60962.0,0.5912867]
[1728553762511,0.946926,60963.0,60962.0,0.5912867]
[1728553762742,0.951926,60963.0,60962.0,0.5912867]
[1728553762971,0.964926,60963.0,60962.0,0.5912867]
[1728553763429,0.951926,60963.0,60962.0,0.5912867]
[1728553763918,0.947926,60963.0,60962.0,0.5952867]
[1728553764142,0.948926,60963.0,60962.0,0.5992867]
[1728553768767,0.948926,60963.0,60962.0,0.4352507]
[1728553769583,0.947926,60963.0,60962.0,0.4312507]
[1728553770020,0.948926,60963.0,60962.0,0.4362507]
[1728553771079,0.947926,60963.0,60962.0,0.4322507]
[1728553771290,0.948926,60963.0,60962.0,0.4362507]
[1728553774394,1.10976364,60963.0,60962.0,0.4362507]
[1728553774609,1.27379664,60963.0,60962.0,0.4362507]
[1728553776802,1.27279664,60963.0,60962.0,0.4312507]
[1728553777460,1.27179664,60963.0,60962.0,0.4272507]
[1728553777672,1.27979664,60963.0,60962.0,0.4272507]
[1728553779258,1.11576364,60963.0,60962.0,0.4272507]
[1728553779695,1.27979664,60963.0,60962.0,0.4272507]
[1728553780354,1.28779664,60963.0,60962.0,0.4272507]
[1728553781822,1.51659664,60963.0,60962.0,0.4272507]
[1728553783187,1.56780174,60963.0,60962.0,0.4272507]
[1728553783643,1.55980174,60963.0,60962.0,0.4272507]
[1728553783991,1.55180174,60963.0,60962.0,0.4272507]
[1728553784188,1.72160835,60963.0,60962.0,0.4272507]
[1728553784388,1.73160835,60963.0,60962.0,0.4272507]
[1728553789340,1.73161766,60963.0,60962.0,0.4272507]
[1728553789957,1.57081105,60963.0,60962.0,0.4272507]
[1728553790366,1.51959664,60963.0,60962.0,0.4272507]
[1728553791318,1.57080985,60963.0,60962.0,0.4272507]
[1728553792483,1.49230985,60963.0,60962.0,0.4272507]
[1728553792677,1.44109664,60963.0,60962.0,0.4272507]
[1728553795101,1.60190325,60963.0,60962.0,0.4272507]
[1728553795318,1.44109664,60963.0,60962.0,0.4272507]
[1728553796633,1.4923037,60963.0,60962.0,0.4272507]
[1728553797802,1.44109664,60963.0,60962.0,0.4272507]
[1728553798000,1.49230858,60963.0,60962.0,0.4272507]
[1728553798211,1.44109664,60963.0,60962.0,0.4272507]
[1728553798424,1.49230878,60963.0,60962.0,0.4272507]
[1728553798642,1.58825185,60963.0,60962.0,0.4272507]
[1728553799722,1.49230878,60963.0,60962.0,0.4272507]
[1728553801352,1.57230878,60963.0,60962.0,0.4272507]
[1728553802032,1.49230878,60963.0,60962.0,0.4272507]
[1728553802253,1.48330878,60963.0,60962.0,0.4272507]
[1728553802484,1.47330878,60963.0,60962.0,0.4272507]
[1728553802715,1.48730878,60963.0,60962.0,0.4272507]
[1728553803167,1.35100878,60963.0,60962.0,0.4272507]
[1728553803704,1.33700878,60963.0,60962.0,0.4272507]
[1728553803937,1.12176364,60963.0,60962.0,0.4272507]
[1728553804387,1.10776364,60963.0,60962.0,0.4272507]
[1728553804837,1.12176364,60963.0,60962.0,0.4272507]
[1728553805034,1.27179664,60963.0,60962.0,0.4272507]
[1728553805410,0.4694,60978.0,60962.0,0.82188834]
[1728553805645,0.000817,60988.0,60987.0,0.168969]
[1728553805875,0.000817,60988.0,60987.0,0.268969]
[1728553806602,0.000817,60988.0,60987.0,0.41692423]
[1728553806826,0.000817,60988.0,60987.0,0.43992423]
[1728553807055,0.000817,60988.0,60987.0,0.291969]
[1728553807516,0.000817,60988.0,60987.0,0.293969]
[1728553807778,0.000817,60988.0,60987.0,0.291969]
[1728553808001,0.001817,60988.0,60987.0,0.302969]
[1728553808223,0.001817,60988.0,60987.0,0.300969]
[1728553808886,0.002817,60988.0,60987.0,0.300969]
[1728553810723,0.002817,60988.0,60987.0,0.272969]
[1728553814240,0.002817,60988.0,60987.0,0.45926598]
[1728553816344,0.002817,60988.0,60987.0,0.46426598]
[1728553816579,0.24615204,60999.0,60992.0,0.45525198]
[1728553816821,0.24615204,60999.0,60992.0,0.45725198]
[1728553817712,0.24615204,60999.0,60992.0,0.45525198]
[1728553818408,0.002817,60993.0,60992.0,0.46625198]
[1728553818627,0.002817,60993.0,60992.0,0.46425198]
[1728553820408,0.002817,60993.0,60992.0,0.48293694]
[1728553821595,0.002817,60993.0,60992.0,0.48493694]
[1728553823816,0.002817,60993.0,60992.0,0.48293694]
[1728553826035,0.002817,60993.0,60992.0,0.48493694]
[1728553827141,0.001817,60993.0,60992.0,0.48493694]
[1728553827361,0.001817,60993.0,60992.0,0.48493614]
[1728553827582,7.894e-05,60993.0,60992.0,0.47593614]
[1728553828025,7.894e-05,60993.0,60992.0,0.86007076]
[1728553828557,0.0002,60999.0,60998.0,0.170939]
[1728553828783,0.0002,60999.0,60998.0,0.64353296]
[1728553829001,0.0002,60999.0,60998.0,0.45723598]
[1728553830190,0.0002,60999.0,60998.0,0.64353296]
[1728553830677,0.0002,60999.0,60998.0,0.45723598]
[1728553830904,0.0012,60999.0,60998.0,0.46823598]
[1728553831124,0.0012,60999.0,60998.0,0.48223598]
[1728553831365,0.0012,60999.0,60998.0,0.48023598]
[1728553831600,0.24595204,61004.0,61003.0,0.268926]
[1728553832062,0.164084,61019.0,61012.0,0.163899]
[1728553832509,0.164084,61019.0,61013.0,0.17905224]
[1728553832968,0.16083764,61016.0,61014.0,0.163896]
[1728553833673,0.16083764,61016.0,61015.0,0.01515324]
[1728553834607,0.16483764,61016.0,61015.0,0.01515324]
[1728553834802,0.16483764,61016.0,61014.0,0.163896]
[1728553835028,0.16083764,61016.0,61015.0,0.01515324]
[1728553835247,0.16483764,61016.0,61015.0,0.01615324]
[1728553835779,0.004,61016.0,61015.0,0.36634422]
[1728553836008,0.016,61016.0,61015.0,0.36734422]
[1728553836703,0.34072864,61016.0,61015.0,0.01715324]
[1728553836936,0.34072864,61016.0,61015.0,0.01615324]
[1728553836937,0.75382562,61016.0,61015.0,0.01615324]
[1728553837187,0.75382562,61016.0,61015.0,0.001]
[1728553837402,0.56752864,61016.0,61015.0,0.005]
[1728553837632,0.56752864,61016.0,61015.0,0.001]
[1728553838305,0.55552864,61016.0,61015.0,0.001]
[1728553838549,0.55952864,61016.0,61015.0,0.003]
[1728553838988,0.55952864,61016.0,61015.0,0.002]
[1728553839447,0.56152864,61016.0,61015.0,0.003]
[1728553847386,0.56234564,61016.0,61015.0,0.003]
[1728553847616,0.39845464,61016.0,61015.0,0.003]
[1728553847843,0.39845464,61016.0,61015.0,0.01811143]
[1728553848079,0.39845464,61016.0,61015.0,0.003]
[1728553848312,0.39845464,61016.0,61015.0,0.01811143]
[1728553848586,0.39845464,61016.0,61015.0,0.003]
[1728553848837,0.39845464,61016.0,61015.0,0.01811143]
[1728553849080,0.39845464,61016.0,61015.0,0.003]
[1728553849331,0.39845464,61016.0,61015.0,0.01811143]
[1728553851598,0.24655464,61016.0,61015.0,0.06695384]
[1728553851845,0.24655464,61016.0,61015.0,0.23084784]
[1728553853201,0.24655464,61016.0,61015.0,0.2308385]
[1728553853437,0.24655464,61016.0,61015.0,0.0669445]
[1728553853671,0.24655464,61016.0,61015.0,0.01811143]
[1728553856766,0.41044564,61016.0,61015.0,0.01811143]
[1728553857252,0.41044564,61016.0,61015.0,0.003]
[1728553859343,0.56254564,61016.0,61015.0,0.003]
[1728553863615,0.39865464,61016.0,61015.0,0.003]
[1728553864288,0.39865464,61016.0,61015.0,0.01809922]
[1728553864506,0.16765464,61016.0,61015.0,0.003]
[1728553864731,0.16765464,61016.0,61015.0,0.01809922]
[1728553864957,0.16765464,61016.0,61015.0,0.003]
[1728553865268,0.16765464,61016.0,61015.0,0.01809922]
[1728553867820,0.33154564,61016.0,61015.0,0.01809922]
[1728553868500,0.16765464,61016.0,61015.0,0.01809922]
[1728553876687,0.33154564,61016.0,61015.0,0.01809922]
[1728553877163,0.65133663,61016.0,61015.0,0.01809922]
[1728553877408,0.65133663,61016.0,61015.0,0.003]
[1728553878327,0.66364486,61016.0,61015.0,0.003]
[1728553878549,0.78574049,61016.0,61015.0,0.003]
[1728553880120,0.77343226,61016.0,61015.0,0.003]
[1728553880597,0.83738334,61016.0,61015.0,0.003]
[1728553881737,0.65133663,61016.0,61015.0,0.003]
[1728553881970,0.48744563,61016.0,61015.0,0.003]
[1728553882208,0.30214563,61016.0,61015.0,0.003]
[1728553882438,0.25085464,61016.0,61015.0,0.003]
[1728553882664,0.25085464,61016.0,61015.0,0.01811171]
[1728553883355,0.25085464,61016.0,61015.0,0.003]
[1728553884039,0.25085464,61016.0,61015.0,0.166894]
[1728553884292,0.25085464,61016.0,61015.0,0.003]
[1728553884546,0.25085464,61016.0,61015.0,0.01811171]
[1728553884794,0.25085464,61016.0,61015.0,0.003]
[1728553884795,0.16765464,61016.0,61015.0,0.003]
[1728553885737,0.16765464,61016.0,61015.0,0.01811171]
[1728553885965,0.16765464,61016.0,61015.0,0.003]
[1728553886195,0.16765464,61016.0,61015.0,0.01811171]
[1728553886870,0.33154564,61016.0,61015.0,0.01811171]
[1728553887650,0.16765464,61016.0,61015.0,0.01811171]
[1728553891765,0.33154564,61016.0,61015.0,0.01811171]
[1728553893419,0.16765464,61016.0,61015.0,0.01811171]
[1728553893640,0.33154564,61016.0,61015.0,0.01811171]
[1728553894093,0.33154564,61016.0,61015.0,0.003]
[1728553908275,0.34384894,61016.0,61015.0,0.003]
[1728553909391,0.33154564,61016.0,61015.0,0.003]
[1728553911669,0.16165464,61016.0,61009.0,0.001634]
[1728553911876,0.48862664,61015.0,61009.0,0.001634]
[1728553912087,0.327794,61014.0,61010.0,0.01511624]
[1728553912298,0.163904,61011.0,61010.0,0.01511624]
[1728553912528,0.32474164,61011.0,61010.0,0.01511624]
[1728553912943,0.16083764,61011.0,61010.0,0.01511624]
[1728553913376,0.16083764,61011.0,61010.0,0.17902324]
[1728553914479,0.16583764,61011.0,61010.0,0.17902324]
[1728553915029,0.17383764,61011.0,61010.0,0.17902324]
[1728553915235,0.17383764,61011.0,61010.0,0.17769424]
[1728553916500,0.17383764,61011.0,61010.0,0.01378724]
[1728553917981,0.17383764,61011.0,61010.0,0.17769424]
[1728553922471,0.17383764,61011.0,61010.0,0.01378724]
[1728553923533,0.33774164,61011.0,61010.0,0.01378724]
[1728553923751,0.17383764,61011.0,61010.0,0.01378724]
[1728553925945,0.33774164,61011.0,61010.0,0.01378724]
[1728553926585,0.17383764,61011.0,61010.0,0.01378724]
[1728553927878,0.17383764,61011.0,61010.0,0.17769424]
[1728553929651,0.17383764,61011.0,61010.0,0.17932824]
[1728553929863,0.013817,61011.0,61010.0,0.17932824]
[1728553930303,0.013817,61011.0,61010.0,0.22827521]
[1728553932089,0.013817,61011.0,61010.0,0.17932824]
[1728553932322,0.013817,61011.0,61010.0,0.22827521]
[1728553932548,0.013817,61011.0,61010.0,0.17932824]
[1728553932761,0.013817,61011.0,61010.0,0.53835704]
[1728553932990,0.013817,61011.0,61010.0,0.60259538]
[1728553933220,0.008817,61011.0,61010.0,0.50411595]
[1728553933486,0.011817,61011.0,61010.0,0.50411595]
[1728553933721,0.011817,61011.0,61010.0,0.47965536]
[1728553933722,0.000817,61011.0,61010.0,0.47965536]
[1728553933945,0.000817,61011.0,61010.0,0.47963943]
[1728553934151,0.007817,61011.0,61010.0,0.48563943]
[1728553934784,0.001817,61011.0,61010.0,0.48663943]
[1728553935006,0.001817,61011.0,61010.0,0.48463943]
[1728553935214,0.002817,61011.0,61010.0,0.49763943]
[1728553936496,0.002817,61011.0,61010.0,0.61978221]
[1728553936707,0.002817,61011.0,61010.0,0.59534362]
[1728553936920,0.002817,61011.0,61010.0,0.55542538]
[1728553937135,0.002817,61011.0,61010.0,0.34565672]
[1728553937391,0.002817,61011.0,61010.0,0.34565698]
[1728553938434,0.002817,61011.0,61010.0,0.29679699]
[1728553939134,0.002817,61011.0,61010.0,0.29626711]
[1728553945961,0.002817,61011.0,61010.0,0.65744111]
[1728553946402,0.002817,61011.0,61010.0,0.55974975]
[1728553947099,0.002817,61011.0,61010.0,0.65740427]
[1728553947331,0.002817,61011.0,61010.0,0.65735842]
[1728553947575,0.002817,61011.0,61010.0,0.55037276]
[1728553947813,0.002817,61011.0,61010.0,0.77944057]
[1728553948274,0.002817,61011.0,61010.0,0.68378762]
[1728553948488,0.002817,61011.0,61010.0,0.77942773]
[1728553949425,0.000817,61011.0,61010.0,0.76142773]
[1728553949639,0.001817,61011.0,61010.0,0.76642773]
[1728553949854,0.002817,61011.0,61010.0,0.77542773]
[1728553950280,0.003817,61011.0,61010.0,0.78242773]
[1728553950491,0.003817,61011.0,61010.0,0.78042773]
[1728553950935,0.003817,61011.0,61010.0,0.78242773]
[1728553952023,0.002817,61011.0,61010.0,0.6687246]
[1728553952235,0.002817,61011.0,61010.0,0.76634884]
[1728553952459,0.002817,61011.0,61010.0,0.78034884]
[1728553953310,0.002817,61011.0,61010.0,0.70214884]
[1728553955465,0.002817,61011.0,61010.0,0.6045246]
[1728553957652,0.002817,61011.0,61010.0,0.48245247]
[1728553957880,0.002817,61011.0,61010.0,0.42433924]
[1728553958097,0.002817,61011.0,61010.0,0.46815555]
[1728553958563,0.002817,61011.0,61010.0,0.29726711]
[1728553958997,0.166721,61011.0,61010.0,0.03336011]
[1728553959247,0.359321,61011.0,61010.0,0.03336011]
[1728553959480,0.433521,61011.0,61010.0,0.02836011]
[1728553959729,0.269617,61011.0,61010.0,0.01436011]
[1728553959952,0.270617,61011.0,61010.0,0.02836011]
[1728553960190,0.270617,61011.0,61010.0,0.04236011]
[1728553960406,0.270617,61011.0,61010.0,0.20626711]
[1728553960833,0.270617,61011.0,61010.0,0.19226711]
[1728553961035,0.270617,61011.0,61010.0,0.20226711]
[1728553961247,0.269617,61011.0,61010.0,0.18826711]
[1728553961668,0.270617,61011.0,61010.0,0.20226711]
[1728553963207,0.270617,61011.0,61010.0,0.20146996]
[1728553969098,0.270617,61011.0,61010.0,0.20120491]
[1728553973479,0.270617,61011.0,61010.0,0.20398595]
[1728553981035,0.001817,61011.0,61010.0,0.20398595]
[1728553982746,0.001817,61011.0,61010.0,0.56908595]
[1728553982989,0.001817,61011.0,61010.0,0.62299632]
[1728553983260,0.001817,61011.0,61010.0,0.75454216]
[1728553983509,0.000817,61011.0,61010.0,0.74027616]
[1728553983785,0.000817,61011.0,61010.0,0.75427616]
[1728553984025,0.001817,61011.0,61010.0,0.75427616]
[1728553984257,0.001817,61011.0,61010.0,0.74427616]
[1728553984493,0.002817,61011.0,61010.0,0.75827616]
[1728553984714,0.002817,61011.0,61010.0,0.77227616]
[1728553985364,0.002817,61011.0,61010.0,0.75827616]
[1728553985577,0.002817,61011.0,61010.0,0.88046097]
[1728553985797,0.002817,61011.0,61010.0,0.89446097]
[1728553986060,0.002817,61011.0,61010.0,0.77227616]
[1728553986534,0.002817,61011.0,61010.0,0.89445817]
[1728553988882,0.002817,61011.0,61010.0,0.64724365]
[1728553989093,0.002817,61011.0,61010.0,0.57548706]
[1728553989304,0.002817,61011.0,61010.0,0.3214549]
[1728553994741,0.002817,61011.0,61010.0,0.0575479]
[1728553994742,0.42455464,61011.0,61010.0,0.0575479]
[1728553995184,0.42455464,61011.0,61010.0,0.2214549]
[1728553995870,0.42455464,61011.0,61010.0,0.2074549]
[1728553996102,0.42255464,61011.0,61010.0,0.0155479]
[1728553996371,0.42255464,61011.0,61010.0,0.2044549]
[1728553996600,0.42255464,61011.0,61010.0,0.1904549]
[1728553997072,0.42455464,61011.0,61010.0,0.1904549]
[1728553997298,0.42455464,61011.0,61010.0,0.0265479]
[1728553997512,0.42655464,61011.0,61010.0,0.0275479]
[1728553997752,0.42655464,61011.0,61010.0,0.1914549]
[1728553997955,0.42655464,61011.0,61010.0,0.1804549]
[1728553998420,0.42855464,61011.0,61010.0,0.1814549]
[1728553998835,0.42855464,61011.0,61010.0,0.0176479]
[1728553999036,0.42655464,61011.0,61010.0,0.1805549]
[1728553999458,0.42855464,61011.0,61010.0,0.1815549]
[1728554000304,0.42855464,61011.0,61010.0,0.0176479]
[1728554000514,0.42855464,61011.0,61010.0,0.1815549]
[1728554001150,0.42855464,61011.0,61010.0,0.0176479]
[1728554001579,0.84343975,61011.0,61010.0,0.0176479]
[1728554001795,0.71453077,61011.0,61010.0,0.0176479]
[1728554002011,0.71453077,61011.0,61010.0,0.003734]
[1728554002657,0.71453077,61011.0,61010.0,0.01797148]
[1728554002899,0.59245864,61011.0,61010.0,0.01797148]
[1728554003116,0.7312057,61011.0,61010.0,0.01797148]
[1728554003334,0.7312057,61011.0,61010.0,0.0171746]
[1728554003560,0.59245864,61011.0,61010.0,0.01691035]
[1728554005318,0.42855464,61011.0,61010.0,0.01691035]
[1728554005536,0.59245864,61011.0,61010.0,0.01691035]
[1728554008925,0.59245864,61011.0,61010.0,0.00267287]
[1728554009154,0.7312057,61011.0,61010.0,0.00267287]
[1728554009896,0.59245864,61011.0,61010.0,0.00267287]
[1728554010914,0.59245864,61011.0,61010.0,0.01691035]
[1728554013604,0.42855464,61011.0,61010.0,0.01691035]
[1728554013868,0.42855464,61011.0,61010.0,0.18081735]
[1728554014342,0.42855464,61011.0,61010.0,0.01691035]
[1728554016031,0.59245864,61011.0,61010.0,0.01691035]
[1728554019976,0.7173455,61011.0,61010.0,0.01691035]
[1728554020889,0.7173455,61011.0,61010.0,0.00267287]
[1728554021112,0.7173455,61011.0,61010.0,0.01692218]
[1728554022005,0.7173455,61011.0,61010.0,0.00267287]
[1728554022222,0.7173455,61011.0,61010.0,0.01694475]
[1728554025989,0.7173455,61011.0,61010.0,0.00267287]
[1728554028220,0.83941763,61011.0,61010.0,0.00267287]
[1728554029814,1.01446575,61011.0,61010.0,0.00267287]
[1728554030045,1.01646575,61011.0,61010.0,0.00267287]
[1728554030499,1.09017175,61011.0,61010.0,0.00267287]
[1728554030987,1.09017175,61011.0,61010.0,0.00167287]
[1728554030988,1.11274041,61011.0,61010.0,0.00167287]
[1728554031240,1.11274041,61011.0,60999.0,0.24595204]
[1728554031241,0.005,61000.0,60999.0,0.24595204]
[1728554031465,0.71174377,61000.0,60999.0,0.24595204]
[1728554031692,0.71174377,61000.0,60999.0,0.25791705]
[1728554031693,0.75966639,61000.0,60999.0,0.25791705]
[1728554031908,0.45990452,61000.0,60998.0,0.001634]
[1728554032170,0.75444306,60999.0,60998.0,0.001634]
[1728554032394,0.70652044,60999.0,60998.0,0.001634]
[1728554033508,0.71852044,60999.0,60998.0,0.002634]
[1728554034612,0.73152044,60999.0,60998.0,0.003634]
[1728554035112,0.97747248,60999.0,60998.0,0.003634]
[1728554035336,0.85859257,60999.0,60998.0,0.003634]
[1728554035769,0.73652044,60999.0,60998.0,0.003634]
[1728554043423,0.73652044,60999.0,60998.0,0.00310301]
[1728554044116,0.73852044,60999.0,60998.0,0.00310301]
[1728554044798,0.73652044,60999.0,60998.0,0.00310301]
[1728554045058,0.73852044,60999.0,60998.0,0.00310301]
[1728554045308,0.73652044,60999.0,60998.0,0.00310301]
[1728554046741,0.86059257,60999.0,60998.0,0.00310301]
[1728554046946,0.73852044,60999.0,60998.0,0.00310301]
[1728554047394,0.86059257,60999.0,60998.0,0.00310301]
[1728554047604,0.73852044,60999.0,60998.0,0.00310301]
[1728554047819,0.86059257,60999.0,60998.0,0.00310301]
[1728554049099,0.84759257,60999.0,60998.0,0.00210301]
[1728554049558,0.83559257,60999.0,60998.0,0.00110301]
[1728554050286,0.93559257,60999.0,60998.0,0.00110301]
[1728554050725,0.98333968,60999.0,60998.0,0.00110301]
[1728554051366,0.99733968,60999.0,60998.0,0.00210301]
[1728554052696,0.98333968,60999.0,60998.0,0.00110301]
[1728554052931,0.99733968,60999.0,60998.0,0.00110301]
[1728554053138,0.94959257,60999.0,60998.0,0.00110301]
[1728554053352,0.99730232,60999.0,60998.0,0.00110301]
[1728554053785,0.94959257,60999.0,60998.0,0.00110301]
[1728554053985,1.0113019,60999.0,60998.0,0.00110301]
[1728554054227,1.0113058,60999.0,60998.0,0.00110301]
[1728554055133,1.01131081,60999.0,60998.0,0.00110301]
[1728554055560,0.96359257,60999.0,60998.0,0.00110301]
[1728554056845,0.83952044,60999.0,60998.0,0.00110301]
[1728554057048,0.96359257,60999.0,60998.0,0.00110301]
[1728554058122,0.96159257,60999.0,60998.0,0.00110301]
[1728554061162,1.00940095,60999.0,60998.0,0.00110301]
[1728554064090,1.13347308,60999.0,60998.0,0.00110301]
[1728554067005,1.13147308,60999.0,60998.0,0.00110301]
[1728554068610,1.13347308,60999.0,60998.0,0.00110301]
[1728554068829,1.13147308,60999.0,60998.0,0.00110301]
[1728554069061,1.00940095,60999.0,60998.0,0.00110301]
[1728554071035,0.88732882,60999.0,60998.0,0.00110301]
[1728554071250,1.05846939,60999.0,60998.0,0.00110301]
[1728554072131,1.00940095,60999.0,60998.0,0.00110301]
[1728554073188,1.01140095,60999.0,60998.0,0.00110301]
[1728554073407,1.13347308,60999.0,60998.0,0.00083701]
[1728554073650,1.00940095,60999.0,60998.0,0.00083701]
[1728554074579,1.01021895,60999.0,60998.0,0.00083701]
[1728554075716,1.13229108,60999.0,60998.0,0.00083701]
[1728554075944,1.01021895,60999.0,60998.0,0.00083701]
[1728554078965,1.13229108,60999.0,60998.0,0.00083701]
[1728554079220,0.163963,60989.0,60988.0,0.001634]
[1728554079481,0.44687277,60989.0,60988.0,0.01398811]
[1728554079700,0.44687277,60989.0,60988.0,0.001634]
[1728554081285,0.46087277,60989.0,60988.0,0.002634]
[1728554082033,0.9654991,60989.0,60988.0,0.002634]
[1728554082257,1.02822599,60989.0,60988.0,0.003634]
[1728554082482,1.05283364,60989.0,60988.0,0.003634]
[1728554082730,0.93076151,60989.0,60988.0,0.003634]
[1728554083211,0.93576151,60989.0,60988.0,0.003634]
[1728554083437,1.05783364,60989.0,60988.0,0.003634]
[1728554083666,0.83733093,60989.0,60988.0,0.003634]
[1728554084167,0.95940306,60989.0,60988.0,0.003634]
[1728554084396,0.95740306,60989.0,60988.0,0.003634]
[1728554084620,0.83733093,60989.0,60988.0,0.003634]
[1728554085292,0.83533093,60989.0,60988.0,0.003634]
[1728554085511,0.93376216,60989.0,60988.0,0.003634]
[1728554088009,0.93576216,60989.0,60988.0,0.003634]
[1728554088464,0.93376216,60989.0,60988.0,0.003634]
[1728554092235,1.3053551,60989.0,60988.0,0.003634]
[1728554092480,1.05940306,60989.0,60988.0,0.003634]
[1728554092701,1.20705734,60989.0,60988.0,0.003634]
[1728554093152,1.05940306,60989.0,60988.0,0.003634]
[1728554094070,1.20705734,60989.0,60988.0,0.003634]
[1728554094267,1.03140306,60989.0,60988.0,0.001634]
[1728554094480,1.04540306,60989.0,60988.0,0.001634]
[1728554094707,1.03140306,60989.0,60988.0,0.002634]
[1728554094978,1.04540306,60989.0,60988.0,0.002634]
[1728554095201,1.05940306,60989.0,60988.0,0.002634]
[1728554095422,1.04540306,60989.0,60988.0,0.002634]
[1728554095643,1.05940306,60989.0,60988.0,0.002634]
[1728554097229,1.04540306,60989.0,60988.0,0.001634]
[1728554097692,1.05940306,60989.0,60988.0,0.001634]
[1728554098141,1.04540306,60989.0,60988.0,0.001634]
[1728554098597,1.05940306,60989.0,60988.0,0.001634]
[1728554101643,0.93733093,60989.0,60988.0,0.001634]
[1728554104144,1.05940306,60989.0,60988.0,0.001634]
[1728554104366,1.04540306,60989.0,60988.0,0.001634]
[1728554104608,1.03140306,60989.0,60988.0,0.001634]
[1728554104848,0.92333093,60989.0,60988.0,0.001634]
[1728554105335,0.93733093,60989.0,60988.0,0.001634]
[1728554105604,0.92333093,60989.0,60988.0,0.001634]
[1728554106088,1.05940306,60989.0,60988.0,0.001634]
[1728554106321,0.93733093,60989.0,60988.0,0.001634]
[1728554108481,0.8132588,60989.0,60988.0,0.001634]
[1728554108723,0.93533093,60989.0,60988.0,0.001634]
[1728554108956,0.93733093,60989.0,60988.0,0.001634]
[1728554109649,0.93533093,60989.0,60988.0,0.001634]
[1728554109842,0.93733093,60989.0,60988.0,0.001634]
[1728554111017,1.05940306,60989.0,60988.0,0.001634]
[1728554114571,1.20447519,60989.0,60988.0,0.001634]
[1728554114793,0.49213426,60979.0,60978.0,0.24595204]
[1728554115021,0.9224639,60979.0,60978.0,0.24595204]
[1728554115251,0.005,60976.0,60966.0,0.2548]
[1728554115484,0.28608713,60970.0,60966.0,0.2548]
[1728554115737,0.44692477,60970.0,60966.0,0.2548]
[1728554115961,0.164023,60967.0,60966.0,0.2548]
[1728554116195,0.60224316,60967.0,60966.0,0.2548]
[1728554117624,0.60524316,60967.0,60966.0,0.2548]
[1728554117863,0.164033,60963.0,60962.0,0.5041507]
[1728554118103,0.32487064,60963.0,60962.0,0.5041507]
[1728554119041,0.32587064,60963.0,60962.0,0.5061507]
[1728554120197,0.16283764,60963.0,60962.0,0.5081507]
[1728554120455,0.002,60963.0,60962.0,0.97215883]
[1728554120692,0.002,60963.0,60962.0,0.86061197]
[1728554121991,0.001,60963.0,60962.0,0.85861197]
[1728554122208,0.164015,60970.0,60967.0,0.2679]
[1728554122453,0.24595204,60968.0,60967.0,0.2679]
[1728554122711,0.16083764,60968.0,60967.0,0.2679]
[1728554122961,0.16083764,60968.0,60967.0,0.27842527]
[1728554123225,0.16083764,60968.0,60967.0,0.44244827]
[1728554124129,0.16083764,60968.0,60967.0,0.27842527]
[1728554125609,0.16483764,60968.0,60967.0,0.27842527]
[1728554126096,0.17083764,60968.0,60967.0,0.27842527]
[1728554126342,0.16683764,60968.0,60967.0,0.27842527]
[1728554126801,0.16083764,60968.0,60967.0,0.27842527]
[1728554127032,0.16783764,60968.0,60967.0,0.27842527]
[1728554127266,0.17283764,60968.0,60967.0,0.27842527]
[1728554127499,0.2721269,60968.0,60967.0,0.27842527]
[1728554127762,0.4361469,60968.0,60967.0,0.27842527]
[1728554128501,0.4311469,60968.0,60967.0,0.27842527]
[1728554128751,0.4361469,60968.0,60967.0,0.27842527]
[1728554129244,0.2721269,60968.0,60967.0,0.27842527]
[1728554129500,0.17283764,60968.0,60967.0,0.27842527]
[1728554130411,0.17283764,60968.0,60967.0,0.01052527]
[1728554130868,0.17283764,60968.0,60966.0,0.001636]
[1728554131115,0.012,60968.0,60967.0,0.01054538]
[1728554131343,0.10741431,60968.0,60967.0,0.01054538]
[1728554131563,0.10741431,60968.0,60966.0,0.001636]
[1728554131788,0.10741431,60968.0,60967.0,0.01054538]
[1728554132283,0.10741431,60968.0,60966.0,0.001636]
[1728554132512,0.44693277,60967.0,60966.0,0.001636]
[1728554132961,0.32486064,60967.0,60966.0,0.001636]
[1728554134832,0.33086064,60967.0,60966.0,0.001636]
[1728554135274,0.33486064,60967.0,60966.0,0.001636]
[1728554135736,0.17083764,60967.0,60966.0,0.001636]
[1728554135967,0.17083764,60967.0,60966.0,0.19698138]
[1728554136219,0.17083764,60967.0,60966.0,0.350461]
[1728554136457,0.17083764,60967.0,60966.0,0.36100638]
[1728554138321,0.01,60967.0,60966.0,0.43620638]
[1728554139041,0.01,60967.0,60966.0,0.64011477]
[1728554139274,0.01,60967.0,60966.0,0.7806009]
[1728554139498,0.01,60967.0,60966.0,0.88016878]
[1728554139725,0.01,60967.0,60966.0,0.76009665]
[1728554140007,0.01,60967.0,60966.0,0.75809665]
[1728554140232,0.01,60967.0,60966.0,0.76009665]
[1728554140453,0.01,60967.0,60966.0,0.94627512]
[1728554140697,0.24595204,60975.0,60974.0,0.164004]
[1728554140931,0.24595204,60975.0,60974.0,0.62348247]
[1728554141181,0.24595204,60982.0,60979.0,0.16399]
[1728554141414,0.40678968,60982.0,60979.0,0.16399]
[1728554141650,0.40678968,60982.0,60978.0,0.163993]
[1728554141893,0.40678968,60982.0,60980.0,0.01049559]
[1728554141894,0.32482064,60982.0,60980.0,0.01049559]
[1728554142116,0.163985,60981.0,60978.0,0.163992]
[1728554142576,0.16083764,60982.0,60980.0,0.163987]
[1728554142811,0.16083764,60982.0,60980.0,0.163986]
[1728554143040,0.16083764,60982.0,60977.0,0.327988]
[1728554143286,0.16083764,60982.0,60978.0,0.163993]
[1728554143287,0.163987,60981.0,60978.0,0.163993]
[1728554144047,0.32482564,60980.0,60977.0,0.163995]
[1728554144287,0.32482564,60980.0,60975.0,0.163999]
[1728554144288,0.163991,60979.0,60975.0,0.163999]
[1728554144519,0.16083764,60978.0,60975.0,0.163999]
[1728554144767,0.16083764,60978.0,60975.0,0.164001]
[1728554145221,0.16083764,60978.0,60975.0,0.492003]
[1728554145448,0.16083764,60978.0,60974.0,0.2733]
[1728554145449,0.163998,60977.0,60973.0,0.164006]
[1728554145673,0.32483564,60977.0,60973.0,0.164006]
[1728554145898,0.32483564,60977.0,60974.0,0.164003]
[1728554146591,0.16083764,60977.0,60975.0,0.164001]
[1728554147291,0.16083764,60976.0,60972.0,0.328015]
[1728554147533,0.16083764,60976.0,60973.0,0.164006]
[1728554148739,0.16583764,60976.0,60974.0,0.164003]
[1728554149466,0.17283764,60976.0,60974.0,0.164003]